bitfinex/quotes_BTCUSD_20250723
["timestamp","ask_amount","ask_price","bid_price","bid_amount"]
[1753261348441,0.03705286,118460.0,118450.0,0.80355636]
[1753261349450,0.03705286,118460.0,118450.0,0.80562636]
[1753261350415,0.03705286,118460.0,118450.0,0.48489015]
[1753261350624,0.03705286,118460.0,118450.0,0.80562636]
[1753261351270,0.02185286,118460.0,118450.0,0.48282015]
[1753261351494,0.03825286,118460.0,118450.0,0.80355636]
[1753261351805,0.03825286,118460.0,118450.0,0.48282015]
[1753261351982,0.03825286,118460.0,118450.0,0.80355636]
[1753261352523,0.03825286,118460.0,118450.0,0.80562636]
[1753261353020,0.03825286,118460.0,118450.0,0.48489015]
[1753261353229,0.03825286,118460.0,118450.0,0.80562636]
[1753261354052,0.02185286,118460.0,118450.0,0.80562636]
[1753261355200,0.02185286,118460.0,118450.0,0.48489015]
[1753261355406,0.02185286,118460.0,118450.0,0.80562636]
[1753261355607,0.01881286,118460.0,118450.0,0.80562636]
[1753261356342,0.01881286,118460.0,118450.0,0.48489015]
[1753261356505,0.01881286,118460.0,118450.0,0.80562636]
[1753261357034,0.01881286,118460.0,118450.0,0.80868636]
[1753261357576,0.01881286,118460.0,118450.0,0.80562636]
[1753261358275,0.01881286,118460.0,118450.0,0.48489015]
[1753261358856,0.01881286,118460.0,118450.0,0.80562636]
[1753261359712,0.01881286,118460.0,118450.0,0.48489015]
[1753261359912,0.01881286,118460.0,118450.0,0.80562636]
[1753261361629,0.01881286,118460.0,118450.0,0.48489015]
[1753261361833,0.01881286,118460.0,118450.0,0.80868636]
[1753261362426,0.00321286,118460.0,118450.0,0.80868636]
[1753261363850,0.00321286,118460.0,118450.0,0.48795015]
[1753261364064,0.00321286,118460.0,118450.0,0.80868636]
[1753261364691,0.00321286,118460.0,118450.0,0.48795015]
[1753261364908,0.00321286,118460.0,118450.0,0.80868636]
[1753261369983,0.00321286,118460.0,118450.0,0.48795015]
[1753261370191,0.00321286,118460.0,118450.0,0.80868636]
[1753261372966,0.00321286,118460.0,118450.0,0.48795015]
[1753261373175,0.00321286,118460.0,118450.0,0.80868636]
[1753261376121,0.00321286,118460.0,118450.0,0.48795015]
[1753261376327,0.00104286,118460.0,118450.0,0.80868636]
[1753261376549,0.00104286,118460.0,118450.0,0.48795015]
[1753261376974,0.00104286,118460.0,118450.0,0.80868636]
[1753261377320,0.00104286,118460.0,118450.0,0.48795015]
[1753261377518,0.00104286,118460.0,118450.0,0.80868636]
[1753261379615,0.00104286,118460.0,118450.0,0.48795015]
[1753261380354,0.00104286,118460.0,118450.0,0.80868636]
[1753261382262,0.00104286,118460.0,118450.0,0.48795015]
[1753261382481,0.00104286,118460.0,118450.0,0.80868636]
[1753261383824,0.00104286,118460.0,118450.0,0.48795015]
[1753261384024,0.00104286,118460.0,118450.0,0.80868636]
[1753261385617,0.01852286,118460.0,118450.0,0.48489015]
[1753261385820,0.03795286,118460.0,118450.0,0.48282015]
[1753261386069,0.58984475,118460.0,118450.0,0.37980991]
[1753261386290,0.59828641,118460.0,118450.0,0.85024991]
[1753261386506,0.58140401,118460.0,118450.0,0.54252]
[1753261386720,0.58140401,118460.0,118450.0,0.673]
[1753261386930,0.57296249,118460.0,118450.0,0.673]
[1753261387164,0.57296249,118460.0,118450.0,0.333]
[1753261387379,0.57296249,118460.0,118450.0,0.20252]
[1753261387576,0.57296249,118460.0,118450.0,0.33312]
[1753261387788,0.57296249,118460.0,118450.0,0.20252]
[1753261388212,0.64296249,118460.0,118450.0,0.33316]
[1753261390208,0.65149861,118460.0,118450.0,0.33316]
[1753261391389,0.64296249,118460.0,118450.0,0.33316]
[1753261391518,0.32222628,118460.0,118450.0,0.33316]
[1753261391743,0.60596409,118460.0,118450.0,0.33316]
[1753261398804,0.28522788,118460.0,118450.0,0.33316]
[1753261398984,0.60596409,118460.0,118450.0,0.33316]
[1753261406699,0.60596409,118460.0,118450.0,0.20252]
[1753261406955,0.60596409,118460.0,118450.0,0.33292]
[1753261407450,0.69044139,118460.0,118450.0,0.20252]
[1753261407697,0.77491869,118460.0,118450.0,0.33296]
[1753261408908,0.77691869,118460.0,118450.0,0.33296]
[1753261409486,0.77591869,118460.0,118450.0,0.33296]
[1753261409693,0.77991869,118460.0,118450.0,0.33296]
[1753261412640,0.45918248,118460.0,118450.0,0.33296]
[1753261412879,0.77991869,118460.0,118450.0,0.33296]
[1753261413281,0.69544139,118460.0,118450.0,0.33296]
[1753261422490,0.37470518,118460.0,118450.0,0.33296]
[1753261422911,0.69544139,118460.0,118450.0,0.33296]
[1753261423126,0.37470518,118460.0,118450.0,0.33296]
[1753261423348,0.69544139,118460.0,118450.0,0.33296]
[1753261424796,0.76351869,118460.0,118450.0,0.33296]
[1753261425032,0.44278248,118460.0,118450.0,0.33296]
[1753261425285,0.76351869,118460.0,118450.0,0.33296]
[1753261428702,0.77901869,118460.0,118450.0,0.33296]
[1753261429754,0.69454139,118460.0,118450.0,0.33288]
[1753261430362,0.67904139,118460.0,118450.0,0.33288]
[1753261432040,0.35830518,118460.0,118450.0,0.33288]
[1753261432243,0.67904139,118460.0,118450.0,0.33288]
[1753261440500,0.66051139,118460.0,118450.0,0.33492]
[1753261440719,0.68836428,118460.0,118450.0,0.33492]
[1753261441531,0.69148428,118460.0,118450.0,0.32931131]
[1753261441941,0.69148428,118460.0,118450.0,0.32727131]
[1753261442692,0.37074807,118460.0,118450.0,0.32727131]
[1753261442970,0.66363139,118460.0,118450.0,0.32727131]
[1753261444343,0.66363139,118460.0,118450.0,0.49611892]
[1753261444591,0.66051139,118460.0,118450.0,0.49815892]
[1753261445851,0.09292541,118460.0,118450.0,0.55067721]
[1753261446098,0.0844841,118460.0,118450.0,0.56647721]
[1753261446271,0.41366162,118460.0,118450.0,0.56647721]
[1753261446483,0.42210307,118460.0,118450.0,0.56647721]
[1753261446716,0.41366133,118460.0,118450.0,0.56647721]
[1753261446936,0.41166133,118460.0,118450.0,0.56647721]
[1753261447137,0.42110271,118460.0,118450.0,0.56647721]
[1753261448193,0.42954423,118460.0,118450.0,0.56647721]
[1753261448303,0.42554423,118460.0,118450.0,0.56647721]
[1753261448515,0.62668069,118460.0,118450.0,0.56647721]
[1753261448726,0.63712235,118460.0,118450.0,0.55803533]
[1753261448939,0.63712235,118460.0,118450.0,0.56647721]
[1753261449161,0.30794512,118460.0,118450.0,0.54959338]
[1753261449371,0.62868133,118460.0,118450.0,0.56647749]
[1753261449573,0.62024009,118460.0,118450.0,0.56647749]
[1753261449775,0.59002699,118460.0,118450.0,0.23350131]
[1753261449984,0.57626409,118460.0,118450.0,0.32923131]
[1753261451080,0.57314409,118460.0,118450.0,0.5308636]
[1753261451293,0.57314409,118460.0,118450.0,0.53930583]
[1753261451511,0.57314409,118460.0,118450.0,0.54245583]
[1753261452402,0.65762139,118460.0,118450.0,0.54245583]
[1753261453415,0.58793678,118460.0,118450.0,0.57453994]
[1753261453843,0.59637837,118460.0,118450.0,0.57454008]
[1753261454250,0.59637837,118460.0,118450.0,0.57453972]
[1753261455500,0.59637837,118460.0,118450.0,0.57453902]
[1753261455877,0.59637837,118460.0,118450.0,0.54245519]
[1753261456110,0.58793713,118460.0,118450.0,0.54245555]
[1753261456406,0.66396476,118460.0,118450.0,0.54245555]
[1753261458424,0.26720092,118460.0,118450.0,0.55089743]
[1753261458643,0.58793713,118460.0,118450.0,0.55089743]
[1753261459082,0.58793713,118460.0,118450.0,0.54245555]
[1753261459632,0.58793713,118460.0,118450.0,0.53401346]
[1753261459847,0.57949568,118460.0,118450.0,0.53401346]
[1753261460261,0.25875947,118460.0,118450.0,0.53401346]
[1753261460463,0.62260555,118460.0,118450.0,0.54245555]
[1753261460971,0.30186934,118460.0,118450.0,0.54245555]
[1753261461191,0.61416396,118460.0,118450.0,0.53401346]
[1753261461759,0.6057223,118460.0,118450.0,0.5255713]
[1753261462175,0.6078123,118460.0,118450.0,0.5255713]
[1753261462391,0.6078123,118460.0,118450.0,0.19895131]
[1753261462604,0.6078123,118460.0,118450.0,0.32927131]
[1753261463216,0.6078123,118460.0,118450.0,0.49811892]
[1753261463537,0.6078123,118460.0,118450.0,0.32927131]
[1753261463714,0.6078123,118460.0,118450.0,0.49811892]
[1753261463917,0.6078123,118460.0,118450.0,0.32927131]
[1753261464618,0.28707609,118460.0,118450.0,0.32927131]
[1753261464839,0.6107823,118460.0,118450.0,0.32723131]
[1753261466144,0.6272823,118460.0,118450.0,0.32723131]
[1753261466528,0.30654609,118460.0,118450.0,0.32723131]
[1753261466747,0.6272823,118460.0,118450.0,0.32723131]
[1753261467243,0.6271823,118460.0,118450.0,0.19691131]
[1753261467457,0.6424823,118460.0,118450.0,0.32715131]
[1753261473565,0.6271823,118460.0,118450.0,0.32715131]
[1753261474209,0.6431823,118460.0,118450.0,0.32715131]
[1753261474425,0.6271823,118460.0,118450.0,0.32715131]
[1753261474864,0.7116596,118460.0,118450.0,0.32715131]
[1753261475047,0.7271596,118460.0,118450.0,0.32715131]
[1753261475519,0.40642339,118460.0,118450.0,0.32715131]
[1753261475891,0.7271596,118460.0,118450.0,0.32715131]
[1753261477633,0.7271596,118460.0,118450.0,0.19691131]
[1753261477855,0.7271596,118460.0,118450.0,0.32715131]
[1753261478304,0.7271596,118460.0,118450.0,0.66715131]
[1753261480890,0.7116596,118460.0,118450.0,0.66715131]
[1753261481558,0.39092339,118460.0,118450.0,0.66715131]
[1753261481735,0.7116596,118460.0,118450.0,0.66715131]
[1753261483178,0.39092339,118460.0,118450.0,0.66715131]
[1753261483372,0.7116596,118460.0,118450.0,0.66715131]
[1753261483575,0.6952596,118460.0,118450.0,0.66715131]
[1753261484125,0.7102596,118460.0,118450.0,0.66715131]
[1753261485275,0.6952596,118460.0,118450.0,0.66715131]
[1753261485699,0.6952596,118460.0,118450.0,0.66914131]
[1753261486858,0.37452339,118460.0,118450.0,0.66914131]
[1753261487071,0.6952596,118460.0,118450.0,0.66914131]
[1753261488249,0.6952596,118460.0,118450.0,0.66715131]
[1753261488958,0.7115596,118460.0,118450.0,0.66715131]
[1753261491567,0.6952596,118460.0,118450.0,0.66715131]
[1753261492389,0.7105596,118460.0,118450.0,0.66715131]
[1753261492999,0.7268596,118460.0,118450.0,0.66715131]
[1753261494158,0.7268596,118460.0,118450.0,0.32715131]
[1753261495011,0.7268596,118460.0,118450.0,0.19691131]
[1753261495201,0.7268596,118460.0,118450.0,0.32715131]
[1753261495412,0.7258596,118460.0,118450.0,0.32715131]
[1753261495618,0.7278596,118460.0,118450.0,0.32715131]
[1753261496198,0.7258596,118460.0,118450.0,0.32715131]
[1753261496827,0.7238596,118460.0,118450.0,0.32715131]
[1753261497034,0.7278596,118460.0,118450.0,0.32715131]
[1753261497693,0.7278596,118460.0,118450.0,0.19691131]
[1753261497822,0.7298596,118460.0,118450.0,0.32715131]
[1753261499231,0.7298596,118460.0,118450.0,0.19691131]
[1753261499446,0.7298596,118460.0,118450.0,0.32715131]
[1753261506573,0.7555567,118460.0,118450.0,0.32715131]
[1753261511922,0.7555567,118460.0,118450.0,0.13024]
[1753261515343,0.43482049,118460.0,118450.0,0.13024]
[1753261515544,0.7555567,118460.0,118450.0,0.13024]
[1753261515978,0.7392567,118460.0,118450.0,0.13024]
[1753261516224,0.65217973,118460.0,118450.0,0.13231]
[1753261516474,0.65008973,118460.0,118450.0,0.15034]
[1753261516704,0.65008973,118460.0,118450.0,0.16684]
[1753261518229,0.32935352,118460.0,118450.0,0.15034]
[1753261518462,0.65008973,118460.0,118450.0,0.16634]
[1753261519432,0.32935352,118460.0,118450.0,0.16634]
[1753261519657,0.73456703,118460.0,118450.0,0.16634]
[1753261525167,0.41383082,118460.0,118450.0,0.16634]
[1753261525377,0.73456703,118460.0,118450.0,0.16634]
[1753261526459,0.65008973,118460.0,118450.0,0.16626]
[1753261527325,0.65008973,118460.0,118450.0,0.66626]
[1753261529319,0.65008973,118460.0,118450.0,0.66626]
[1753261533562,0.65008973,118460.0,118450.0,0.65026]
[1753261534105,0.65008973,118460.0,118450.0,0.5201]
[1753261534358,0.32935352,118460.0,118450.0,0.65026]
[1753261534549,0.65008973,118460.0,118450.0,0.65026]
[1753261534785,0.73456703,118460.0,118450.0,0.65026]
[1753261540610,0.73659703,118460.0,118450.0,0.63223]
[1753261540815,0.73968703,118460.0,118450.0,0.63223]
[1753261541879,0.75618703,118460.0,118450.0,0.63012]
[1753261542095,0.77278703,118460.0,118450.0,0.63012]
[1753261542312,0.75618703,118460.0,118450.0,0.63012]
[1753261550153,1.07692324,118460.0,118450.0,0.63012]
[1753261550365,1.10784902,118460.0,118450.0,0.63012]
[1753261550585,1.10784902,118460.0,118450.0,0.63008]
[1753261551027,1.51529804,118460.0,118450.0,0.19649655]
[1753261551450,1.54064404,118460.0,118450.0,0.19649655]
[1753261551664,1.53864404,118460.0,118450.0,0.19649655]
[1753261551899,1.55264404,118460.0,118450.0,0.19749655]
[1753261552115,1.54863495,118460.0,118450.0,0.19749655]
[1753261553242,1.54863495,118460.0,118450.0,0.19574334]
[1753261553423,1.54862543,118460.0,118450.0,0.19574334]
[1753261553607,1.56862543,118460.0,118450.0,0.19774334]
[1753261554377,1.96862543,118460.0,118450.0,0.19774334]
[1753261556526,0.21614755,118440.0,118430.0,0.2026]
[1753261556732,1.0115093,118440.0,118430.0,0.33268]
[1753261557202,1.0368563,118440.0,118430.0,0.33268]
[1753261558101,1.0388563,118440.0,118430.0,0.33268]
[1753261558877,1.1088563,118440.0,118430.0,0.33268]
[1753261559297,1.1118563,118440.0,118430.0,0.33368]
[1753261561897,0.47038388,118440.0,118430.0,0.33368]
[1753261562126,1.1118563,118440.0,118430.0,0.33368]
[1753261566574,1.1068563,118440.0,118430.0,0.33268]
[1753261566943,1.1068563,118440.0,118430.0,0.33468]
[1753261566944,1.1258563,118440.0,118430.0,0.33468]
[1753261570133,1.47137165,118440.0,118430.0,0.33468]
[1753261570360,1.15063544,118440.0,118430.0,0.33468]
[1753261570566,1.47137165,118440.0,118430.0,0.33468]
[1753261570771,1.87882067,118440.0,118430.0,0.13208]
[1753261571010,1.89460611,118440.0,118430.0,0.13208]
[1753261571411,1.94460611,118440.0,118430.0,0.13208]
[1753261571586,1.94460411,118440.0,118430.0,0.13208]
[1753261573268,1.93660411,118440.0,118430.0,0.13108]
[1753261573682,1.94860411,118440.0,118430.0,0.13108]
[1753261573891,1.94859904,118440.0,118430.0,0.13108]
[1753261575628,2.33759904,118440.0,118430.0,0.13008]
[1753261575840,1.93759904,118440.0,118430.0,0.13008]
[1753261576065,1.95159904,118440.0,118430.0,0.13108]
[1753261576379,1.95399208,118440.0,118430.0,0.13108]
[1753261576606,1.96976903,118440.0,118430.0,0.13108]
[1753261577739,1.96976991,118440.0,118430.0,0.13108]
[1753261578362,1.96976991,118440.0,118430.0,0.001]
[1753261579751,2.36976991,118440.0,118430.0,0.001]
[1753261582574,2.3697764,118440.0,118430.0,0.001]
[1753261587927,2.35399208,118440.0,118430.0,0.001]
[1753261588148,2.36977968,118440.0,118430.0,0.001]
[1753261590971,2.45860968,118440.0,118430.0,0.001]
[1753261591195,2.36977968,118440.0,118430.0,0.001]
[1753261591388,1.99247965,118440.0,118430.0,0.001]
[1753261592087,1.03027102,118440.0,118430.0,0.001]
[1753261592295,1.99247965,118440.0,118430.0,0.001]
[1753261592758,1.97707965,118440.0,118430.0,0.001]
[1753261593304,1.65634344,118440.0,118430.0,0.001]
[1753261593836,1.54819445,118440.0,118430.0,0.01849]
[1753261594019,1.54819445,118440.0,118430.0,0.03704]
[1753261594020,1.15619445,118440.0,118430.0,0.03704]
[1753261594223,1.13802304,118440.0,118430.0,0.03704]
[1753261597326,1.13802304,118440.0,118430.0,0.16696]
[1753261605199,1.12223544,118440.0,118430.0,0.16696]
[1753261605963,0.48076302,118440.0,118430.0,0.16696]
[1753261606150,1.12223544,118440.0,118430.0,0.16696]
[1753261610190,1.10132421,118440.0,118430.0,0.16696]
[1753261622459,1.10132421,118440.0,118430.0,0.33583612]
[1753261622674,0.75580886,118440.0,118430.0,0.36961033]
[1753261622900,0.72075115,118440.0,118430.0,0.36961033]
[1753261623098,0.69540415,118440.0,118430.0,0.36116703]
[1753261623319,0.69540415,118440.0,118430.0,0.36961047]
[1753261623518,0.68340415,118440.0,118430.0,0.36961047]
[1753261623783,0.76788145,118440.0,118430.0,0.35272351]
[1753261624012,0.73699577,118440.0,118430.0,0.35172365]
[1753261624421,0.73699577,118440.0,118430.0,0.36016731]
[1753261624742,0.74299577,118440.0,118430.0,0.36116731]
[1753261625170,0.74899577,118440.0,118430.0,0.36216731]
[1753261625588,0.66451847,118440.0,118430.0,0.3706109]
[1753261629082,0.66451847,118440.0,118430.0,0.37905442]
[1753261630758,0.66451847,118440.0,118430.0,0.35372365]
[1753261631503,0.66451847,118440.0,118430.0,0.36216731]
[1753261632756,0.65607538,118440.0,118430.0,0.36216731]
[1753261632967,0.65607538,118440.0,118430.0,0.3706109]
[1753261634658,0.74899563,118440.0,118430.0,0.37905434]
[1753261635921,0.74899563,118440.0,118430.0,0.36216731]
[1753261637607,0.74055268,118440.0,118430.0,0.35372365]
[1753261638864,0.74055268,118440.0,118430.0,0.34527992]
[1753261640207,0.74055268,118440.0,118430.0,0.35372365]
[1753261640442,0.74055268,118440.0,118430.0,0.36216724]
[1753261643327,0.34378212,118440.0,118430.0,0.37061061]
[1753261643556,0.66451833,118440.0,118430.0,0.37061061]
[1753261643787,0.66451833,118440.0,118430.0,0.36216724]
[1753261644213,0.66451833,118440.0,118430.0,0.37061076]
[1753261646142,0.66451833,118440.0,118430.0,0.36216724]
[1753261648095,0.68617873,118440.0,118430.0,0.36216724]
[1753261650294,0.68617873,118440.0,118430.0,0.35372365]
[1753261652452,0.99847199,118440.0,118430.0,0.15246]
[1753261653027,1.00061199,118440.0,118430.0,0.15246]
[1753261655809,1.00061199,118440.0,118430.0,0.14941]
[1753261656008,1.00357199,118440.0,118430.0,0.13391]
[1753261656213,1.01997199,118440.0,118430.0,0.002]
[1753261656438,1.03597199,118440.0,118430.0,0.1316]
[1753261656647,1.03597199,118440.0,118430.0,0.002]
[1753261656892,1.03597199,118440.0,118430.0,0.1316]
[1753261661793,0.65821538,118440.0,118430.0,0.13375]
[1753261662020,0.65821538,118440.0,118430.0,0.15258]
[1753261662248,0.97895159,118440.0,118430.0,0.15258]
[1753261662621,0.97895159,118440.0,118430.0,0.14955]
[1753261667512,0.98191159,118440.0,118430.0,0.14955]
[1753261667738,1.06638889,118440.0,118430.0,0.13375]
[1753261668262,1.06638889,118440.0,118430.0,0.1316]
[1753261678640,1.06638889,118440.0,118430.0,0.002]
[1753261678869,1.09708889,118440.0,118430.0,0.13152]
[1753261679739,1.12243689,118440.0,118430.0,0.13152]
[1753261683235,1.13825317,118440.0,118430.0,0.13152]
[1753261694301,1.4764384,118440.0,118430.0,0.13152]
[1753261694487,1.8164384,118440.0,118430.0,0.13152]
[1753261694704,1.88465673,118440.0,118430.0,0.13152]
[1753261695163,1.83585742,118440.0,118430.0,0.13152]
[1753261695394,1.85182281,118440.0,118430.0,0.13152]
[1753261695613,1.86763418,118440.0,118430.0,0.13152]
[1753261696373,0.88961418,118440.0,118430.0,0.13152]
[1753261696575,1.85182281,118440.0,118430.0,0.13152]
[1753261696779,1.87003681,118440.0,118430.0,0.13152]
[1753261696980,1.85803681,118440.0,118430.0,0.12952]
[1753261697185,1.86803681,118440.0,118430.0,0.12952]
[1753261697388,1.88203681,118440.0,118430.0,0.13052]
[1753261698080,1.83203681,118440.0,118430.0,0.13052]
[1753261698297,1.88203681,118440.0,118430.0,0.13052]
[1753261698514,1.83203681,118440.0,118430.0,0.13052]
[1753261698719,1.88203681,118440.0,118430.0,0.13052]
[1753261699260,2.28203681,118440.0,118430.0,0.13052]
[1753261699492,2.29784896,118440.0,118430.0,0.13052]
[1753261699691,2.24784896,118440.0,118430.0,0.13052]
[1753261700009,1.89784896,118440.0,118430.0,0.13052]
[1753261700465,1.84784896,118440.0,118430.0,0.13052]
[1753261700686,1.89784896,118440.0,118430.0,0.13052]
[1753261701112,1.84784896,118440.0,118430.0,0.13052]
[1753261701335,1.89784896,118440.0,118430.0,0.13052]
[1753261702142,1.92341669,118440.0,118430.0,0.13052]
[1753261702321,1.90520269,118440.0,118430.0,0.13052]
[1753261703174,1.95520269,118440.0,118430.0,0.13052]
[1753261703828,2.07340805,118440.0,118430.0,0.13052]
[1753261704038,2.07340805,118440.0,118430.0,0.001]
[1753261704039,2.1135083,118440.0,118430.0,0.001]
[1753261704267,2.0635083,118440.0,118430.0,0.001]
[1753261704515,2.1135083,118440.0,118430.0,0.001]
[1753261704713,0.81882194,118410.0,118400.0,0.08669691]
[1753261704914,0.98777654,118410.0,118400.0,0.21811691]
[1753261705056,0.99622163,118410.0,118400.0,0.23351691]
[1753261705923,0.99627085,118410.0,118400.0,0.23351691]
[1753261706342,1.02162185,118410.0,118400.0,0.23351691]
[1753261706588,1.02568185,118410.0,118400.0,0.1704]
[1753261706819,1.02568185,118410.0,118400.0,0.15192]
[1753261707051,1.09668185,118410.0,118400.0,0.15292]
[1753261707732,0.45314943,118410.0,118400.0,0.17216]
[1753261707912,0.77388564,118410.0,118400.0,0.17216]
[1753261710157,1.09462185,118410.0,118400.0,0.17216]
[1753261710615,0.77388564,118410.0,118400.0,0.17216]
[1753261714086,0.77297581,118410.0,118400.0,0.17216]
[1753261717943,1.09371202,118410.0,118400.0,0.17216]
[1753261722584,1.09371202,118410.0,118400.0,0.04276]
[1753261722790,1.09371202,118410.0,118400.0,0.17208]
[1753261723135,1.09878202,118410.0,118400.0,0.15082]
[1753261724325,1.09878202,118410.0,118400.0,0.15284]
[1753261725731,1.09878202,118410.0,118400.0,0.02352]
[1753261725934,1.09878202,118410.0,118400.0,0.15284]
[1753261726958,0.4573096,118410.0,118400.0,0.15284]
[1753261727158,1.09878202,118410.0,118400.0,0.15284]
[1753261728382,1.09577202,118410.0,118400.0,0.15284]
[1753261730658,1.09878202,118410.0,118400.0,0.15284]
[1753261731952,0.4573096,118410.0,118400.0,0.15284]
[1753261732201,1.09878202,118410.0,118400.0,0.15284]
[1753261733269,1.09878202,118410.0,118400.0,0.15078]
[1753261733500,1.11418202,118410.0,118400.0,0.13428]
[1753261734523,1.45041823,118410.0,118400.0,0.005]
[1753261734729,1.45041823,118410.0,118400.0,0.13428]
[1753261734730,1.12968202,118410.0,118400.0,0.13428]
[1753261735295,1.44941823,118410.0,118400.0,0.13328]
[1753261735499,1.46686725,118410.0,118400.0,0.13328]
[1753261735704,1.46786725,118410.0,118400.0,0.13428]
[1753261736194,1.86786725,118410.0,118400.0,0.13428]
[1753261737026,1.86686725,118410.0,118400.0,0.13328]
[1753261737448,1.89268621,118410.0,118400.0,0.13328]
[1753261738287,1.96196621,118410.0,118400.0,0.004]
[1753261738506,2.01196621,118410.0,118400.0,0.004]
[1753261738718,2.06196128,118410.0,118400.0,0.004]
[1753261738925,0.24678407,118400.0,118390.0,0.12928]
[1753261739079,1.05934107,118400.0,118390.0,0.12928]
[1753261739290,1.46249107,118400.0,118390.0,0.12928]
[1753261739479,1.48784907,118400.0,118390.0,0.12928]
[1753261739778,1.50365866,118400.0,118390.0,0.12928]
[1753261740212,1.50665866,118400.0,118390.0,0.13028]
[1753261740858,1.51165866,118400.0,118390.0,0.13028]
[1753261744618,1.90165866,118400.0,118390.0,0.13028]
[1753261744849,1.65165866,118400.0,118390.0,0.001]
[1753261745056,1.66986979,118400.0,118390.0,0.001]
[1753261745273,1.65165866,118400.0,118390.0,0.001]
[1753261746121,0.63417515,118390.0,118380.0,0.12924]
[1753261746312,1.78673217,118390.0,118380.0,0.12924]
[1753261746522,1.78988217,118390.0,118380.0,0.12924]
[1753261746726,1.81524317,118390.0,118380.0,0.12924]
[1753261746949,1.83102846,118390.0,118380.0,0.12924]
[1753261748244,1.83302846,118390.0,118380.0,0.13024]
[1753261748673,0.17739468,118380.0,118370.0,0.1]
[1753261748859,0.9899517,118380.0,118370.0,0.22924]
[1753261749006,0.9931017,118380.0,118370.0,0.22924]
[1753261749213,1.0184627,118380.0,118370.0,0.22924]
[1753261749422,1.0439418,118380.0,118370.0,0.22924]
[1753261749840,1.0459418,118380.0,118370.0,0.22924]
[1753261750890,1.0469418,118380.0,118370.0,0.22924]
[1753261757564,1.0215808,118380.0,118370.0,0.22924]
[1753261759499,1.0371808,118380.0,118370.0,0.22924]
[1753261760204,1.0779418,118380.0,118370.0,0.22924]
[1753261760420,1.0769418,118380.0,118370.0,0.22924]
[1753261760631,1.09271973,118380.0,118370.0,0.22924]
[1753261760847,1.49671973,118380.0,118370.0,0.22924]
[1753261761570,1.43290496,118380.0,118370.0,0.22924]
[1753261761760,1.11216875,118380.0,118370.0,0.22924]
[1753261761971,1.11516875,118380.0,118370.0,0.22924]
[1753261762470,2.07962586,118380.0,118370.0,0.22924]
[1753261762713,2.07962586,118380.0,118350.0,0.0163]
[1753261762714,0.41857309,118360.0,118350.0,0.0009]
[1753261762923,1.23113011,118360.0,118350.0,0.1301]
[1753261763145,1.25005804,118360.0,118350.0,0.1301]
[1753261763355,1.27542804,118360.0,118350.0,0.1301]
[1753261764196,1.27542804,118360.0,118350.0,0.00139322]
[1753261764399,1.27542804,118360.0,118350.0,0.13059322]
[1753261764780,1.28542804,118360.0,118350.0,0.13059322]
[1753261765168,1.21835752,118360.0,118350.0,0.13059322]
[1753261765373,1.21535752,118360.0,118350.0,0.13059322]
[1753261765618,1.22635752,118360.0,118350.0,0.00139322]
[1753261765968,1.62635752,118360.0,118350.0,0.00139322]
[1753261767603,1.22635752,118360.0,118350.0,0.00139322]
[1753261768324,1.35555752,118360.0,118350.0,0.00139322]
[1753261769216,1.42555752,118360.0,118350.0,0.00139322]
[1753261769812,1.43406414,118360.0,118350.0,0.00139322]
[1753261772577,1.45224122,118360.0,118350.0,0.00139322]
[1753261772807,0.48058962,118350.0,118340.0,0.02099322]
[1753261773031,0.70754707,118350.0,118340.0,0.02109822]
[1753261773479,0.72864507,118350.0,118340.0,0.02109822]
[1753261774166,0.73264507,118350.0,118340.0,0.02109822]
[1753261775362,0.73564507,118350.0,118340.0,0.02109822]
[1753261776660,1.13564507,118350.0,118340.0,0.02109822]
[1753261777073,1.11986714,118350.0,118340.0,0.02109822]
[1753261780588,1.11986714,118350.0,118340.0,0.000105]
[1753261781685,1.13565769,118350.0,118340.0,0.000105]
[1753261782524,1.15175769,118350.0,118340.0,0.000105]
[1753261783396,1.20175769,118350.0,118340.0,0.000105]
[1753261784171,0.80175769,118350.0,118340.0,0.000105]
[1753261784783,0.74925464,118340.0,118330.0,0.0002]
[1753261785004,1.35399074,118340.0,118330.0,0.00032503]
[1753261785212,1.72952125,118340.0,118330.0,0.00032503]
[1753261785473,1.72952125,118340.0,118310.0,0.0164]
[1753261785474,0.82897485,118320.0,118310.0,0.0164]
[1753261785615,0.9312427,118320.0,118310.0,0.01858932]
[1753261786833,0.95632373,118320.0,118310.0,0.01858932]
[1753261787036,1.05633384,118320.0,118310.0,0.01858932]
[1753261787241,0.99342771,118320.0,118310.0,0.01858932]
[1753261787636,0.99442771,118320.0,118310.0,0.01858932]
[1753261787991,1.23124673,118320.0,118310.0,0.00024932]
[1753261788385,1.23324673,118320.0,118310.0,0.00024932]
[1753261789048,1.23124673,118320.0,118310.0,0.00024932]
[1753261789417,1.25754673,118320.0,118310.0,0.00024932]
[1753261789827,1.25124673,118320.0,118310.0,0.00024932]
[1753261790311,1.23504673,118320.0,118310.0,0.00024932]
[1753261790530,0.22749963,118310.0,118300.0,0.0002]
[1753261790701,0.70008542,118310.0,118300.0,0.00024932]
[1753261790919,0.70325542,118310.0,118300.0,0.00024932]
[1753261791667,0.72863442,118310.0,118300.0,0.00024932]
[1753261792075,0.74483442,118310.0,118300.0,0.00024932]
[1753261793268,0.75183442,118310.0,118300.0,0.00024932]
[1753261794309,1.15183442,118310.0,118300.0,0.00024932]
[1753261795432,1.13563442,118310.0,118300.0,0.00024932]
[1753261797224,1.15173442,118310.0,118300.0,0.00024932]
[1753261798683,1.15173442,118310.0,118300.0,0.12936932]
[1753261799092,1.15173442,118310.0,118300.0,0.00024932]
[1753261799309,1.15173442,118310.0,118300.0,0.12936932]
[1753261799944,1.16673442,118310.0,118300.0,0.12936932]
[1753261800656,1.16673442,118310.0,118300.0,0.00024932]
[1753261801059,1.16673442,118310.0,118300.0,0.12936932]
[1753261801264,1.29585442,118310.0,118300.0,0.00024932]
[1753261802540,0.89583806,118310.0,118300.0,0.00024932]
[1753261803454,0.86473806,118310.0,118300.0,0.00024932]
[1753261803679,0.68244806,118310.0,118300.0,0.01768932]
[1753261803903,0.69789708,118310.0,118300.0,0.03635932]
[1753261804118,0.68044806,118310.0,118300.0,0.03635932]
[1753261804361,0.68044806,118310.0,118300.0,0.16547932]
[1753261804582,0.69789708,118310.0,118300.0,0.16547932]
[1753261805674,0.69789708,118310.0,118300.0,0.03635932]
[1753261806338,0.70299708,118310.0,118300.0,0.00024932]
[1753261806550,0.71879708,118310.0,118300.0,0.00024932]
[1753261807311,0.76879708,118310.0,118300.0,0.00024932]
[1753261807949,0.78519708,118310.0,118300.0,0.00024932]
[1753261808135,1.18519708,118310.0,118300.0,0.00024932]